bitfinex/quotes_ETHUSD_20250328
["timestamp","ask_amount","ask_price","bid_price","bid_amount"]
[1743173031894,12.05361,1895.8,1895.5,5.27557]
[1743173032098,6.7787,1895.8,1895.5,5.27557]
[1743173032890,6.7787,1895.8,1895.5,5.27553]
[1743173033108,6.7787,1895.8,1895.5,10.55104]
[1743173033408,6.7787,1895.8,1895.5,5.27551]
[1743173034198,6.7787,1895.8,1895.5,5.93795642]
[1743173034489,6.01,1895.8,1895.6,5.27525]
[1743173034697,6.01,1895.8,1895.6,5.27523]
[1743173035659,6.01,1895.8,1895.6,5.27522]
[1743173036697,6.01,1895.8,1895.5,5.93802642]
[1743173036884,6.01,1895.8,1895.5,5.27558]
[1743173037201,6.0785,1895.7,1895.4,5.2759]
[1743173037399,0.8033,1895.7,1895.4,10.55167]
[1743173037690,0.8033,1895.7,1895.4,10.55152]
[1743173038073,6.01,1895.8,1895.5,10.55093]
[1743173038274,6.01,1895.8,1895.5,5.27545]
[1743173038888,6.01,1895.8,1895.5,10.55093]
[1743173039063,6.01,1895.8,1895.5,5.27545]
[1743173039392,6.01,1895.8,1895.5,10.55094]
[1743173039594,6.01,1895.8,1895.6,5.27534]
[1743173039768,6.01,1895.8,1895.6,5.27522]
[1743173040302,6.01,1895.8,1895.5,10.55118]
[1743173040599,6.01,1895.8,1895.6,5.27533]
[1743173040778,0.05,1895.9,1895.8,5.27481]
[1743173041184,0.05,1895.9,1895.7,5.27507]
[1743173041386,5.32455,1895.9,1895.5,5.27551]
[1743173041595,6.09674,1895.8,1895.5,5.27551]
[1743173041893,5.27519,1895.7,1895.3,10.55203]
[1743173042100,5.27548,1895.6,1895.3,5.27598]
[1743173042264,8.64742853,1895.6,1895.1,33.94137]
[1743173042461,11.2854,1895.6,1895.3,5.27619]
[1743173042662,11.2854,1895.6,1895.4,5.27583]
[1743173042663,6.01,1895.6,1895.4,5.27583]
[1743173043079,6.01,1895.6,1895.4,5.27575]
[1743173043279,6.01,1895.6,1895.5,5.27565]
[1743173043477,6.01,1895.6,1895.4,1.05519]
[1743173043685,6.01,1895.6,1895.3,5.27609]
[1743173044091,6.01,1895.6,1895.4,10.55166]
[1743173044288,6.01,1895.6,1895.2,5.2763]
[1743173044600,11.28538,1895.6,1895.2,5.27623]
[1743173044899,5.27566,1895.5,1895.2,5.27623]
[1743173045099,11.28538,1895.6,1895.2,10.55248]
[1743173045285,6.01,1895.6,1895.3,5.27602]
[1743173045490,12.491689,1895.6,1895.3,5.27602]
[1743173045970,17.767239,1895.6,1895.2,5.27647]
[1743173046170,12.491689,1895.6,1895.2,5.27634]
[1743173046497,6.08924,1895.4,1895.1,33.17475]
[1743173046689,6.08924,1895.4,1895.1,33.17461]
[1743173046886,0.8133,1895.4,1895.1,33.17461]
[1743173047088,6.08937,1895.4,1895.1,27.898]
[1743173047294,12.09872,1895.6,1895.2,5.27624]
[1743173047499,12.09872,1895.6,1895.2,10.55254]
[1743173047805,17.37426,1895.6,1895.2,10.55254]
[1743173048304,17.37426,1895.6,1895.2,5.27624]
[1743173048490,12.09872,1895.6,1895.3,5.27611]
[1743173048693,13.308592,1895.6,1895.2,10.55263]
[1743173049009,13.308592,1895.6,1895.2,5.27624]
[1743173049183,6.8233,1895.6,1895.3,5.27595]
[1743173049380,6.01,1895.6,1895.5,5.27565]
[1743173049595,12.12306,1895.9,1895.5,5.27556]
[1743173049791,17.39782,1895.9,1895.5,5.27556]
[1743173050012,19.137602,1895.9,1895.5,5.27556]
[1743173050176,5.27484,1895.8,1895.5,5.27556]
[1743173050503,0.8071,1895.6,1895.4,5.27579]
[1743173051506,0.8071,1895.6,1895.3,10.55213]
[1743173051679,6.08248,1895.6,1895.3,5.27604]
[1743173051880,11.35801,1895.6,1895.3,5.27604]
[1743173052093,6.86006848,1895.6,1895.2,10.41135]
[1743173052293,0.8071,1895.6,1895.3,5.27602]
[1743173052494,6.08248,1895.6,1895.3,5.27602]
[1743173053378,8.64742853,1895.5,1895.1,27.898]
[1743173053704,8.64742853,1895.5,1894.7,5.27778]
[1743173053705,6.06201,1895.1,1894.8,5.13]
[1743173053926,6.668211,1895.1,1894.7,5.27771]
[1743173054076,0.7851,1895.1,1894.8,5.27746]
[1743173054473,0.7851,1895.1,1894.8,10.5549]
[1743173054709,0.7851,1895.1,1894.8,10.55488]
[1743173054916,0.7851,1895.1,1894.9,5.27705]
[1743173056189,1.992259,1895.1,1894.8,5.27755]
[1743173057198,7.269059,1895.1,1894.8,5.27755]
[1743173057385,1.992259,1895.1,1894.9,5.2772]
[1743173058007,6.01,1895.2,1894.9,10.55443]
[1743173058204,6.01,1895.2,1895.0,5.27683]
[1743173058408,12.0736,1895.3,1894.9,10.55445]
[1743173058591,12.0736,1895.3,1895.0,5.27694]
[1743173059919,6.7973,1895.3,1895.0,10.55385]
[1743173060123,6.7973,1895.3,1895.0,5.27691]
[1743173060927,12.0736,1895.3,1895.0,5.27691]
[1743173061098,13.808556,1895.3,1895.0,5.27691]
[1743173061645,6.7973,1895.3,1895.2,5.27648]
[1743173061801,6.01,1895.3,1895.2,5.27648]
[1743173062110,10.21,1895.7,1895.4,5.27583]
[1743173062111,6.01,1895.7,1895.4,5.27583]
[1743173062292,12.1005,1895.8,1895.4,10.55161]
[1743173062493,3.0,1895.7,1895.4,10.55161]
[1743173062693,12.1005,1895.8,1895.4,10.55161]
[1743173062694,6.8256,1895.8,1895.6,5.27522]
[1743173062894,6.8256,1895.8,1895.5,5.27564]
[1743173063107,12.10051,1895.8,1895.5,5.27564]
[1743173063332,6.8256,1895.8,1895.5,5.27564]
[1743173063897,6.01,1895.8,1895.6,5.27536]
[1743173064243,6.01,1895.8,1895.7,5.27509]
[1743173064397,6.01,1895.8,1895.6,5.27536]
[1743173064726,6.01,1895.8,1895.6,5.27524]
[1743173065226,6.01,1895.8,1895.6,5.27519]
[1743173066509,6.01,1895.8,1895.5,10.55117]
[1743173067328,11.33455,1895.9,1895.5,10.55117]
[1743173067518,11.33455,1895.9,1895.6,5.2753]
[1743173067719,6.06,1895.9,1895.7,5.27507]
[1743173067920,0.05,1895.9,1895.8,5.27481]
[1743173068122,0.05,1895.9,1895.7,5.27507]
[1743173068716,0.05,1895.9,1895.6,6.03885]
[1743173068932,5.32456,1895.9,1895.6,6.03885]
[1743173069128,0.05,1895.9,1895.6,11.31406]
[1743173069427,0.05,1895.9,1895.7,5.27507]
[1743173069630,0.05,1895.9,1895.7,5.27498]
[1743173069833,0.8259,1895.9,1895.6,5.27524]
[1743173070006,6.10046,1895.9,1895.6,5.27524]
[1743173070207,0.8259,1895.9,1895.5,5.27561]
[1743173070419,3.39782853,1895.6,1895.1,27.897]
[1743173070737,3.39782853,1895.6,1894.3,6.4605843]
[1743173070738,0.7604,1895.2,1894.7,3.39322853]
[1743173070904,6.03698,1895.2,1894.8,5.27734]
[1743173071105,11.31366,1895.2,1894.8,5.27734]
[1743173071305,6.03698,1895.2,1894.8,5.27734]
[1743173071542,5.2768,1895.1,1894.8,5.27734]
[1743173071708,11.31365,1895.2,1894.8,5.27734]
[1743173072235,5.27679,1895.1,1894.7,5.27771]
[1743173073106,0.7604,1895.2,1894.9,5.27712]
[1743173073546,8.27628,1895.3,1895.0,5.27703]
[1743173073832,8.27628,1895.3,1894.8,3.45622853]
[1743173074027,8.27628,1895.3,1894.9,5.27714]
[1743173074210,13.55267,1895.3,1894.9,5.27714]
[1743173074412,8.27628,1895.3,1894.9,10.55432]
[1743173074609,5.27662,1895.2,1894.8,0.8188]
[1743173074822,9.42182853,1895.1,1894.5,6.11022]
[1743173075020,5.2772,1895.0,1894.5,5.2782]
[1743173075242,5.27738,1894.9,1894.5,5.2782]
[1743173075734,5.27716,1895.0,1894.6,5.27812]
[1743173075930,5.27736,1894.9,1894.5,7.91562853]
[1743173076132,5.27736,1894.9,1894.5,5.2782]
[1743173076436,5.27716,1895.0,1894.6,5.27795]
[1743173076638,10.55442,1895.0,1894.6,5.27795]
[1743173077248,5.2774,1894.9,1894.5,5.2782]
[1743173077543,5.27811,1894.7,1894.4,27.895]
[1743173077710,5.278,1894.7,1894.3,11.7395543]
[1743173077913,10.55609,1894.7,1894.3,11.7395543]
[1743173078112,5.27825,1894.6,1894.3,6.4605843]
[1743173078410,5.27861,1894.5,1894.3,6.4605843]
[1743173078607,0.7736,1894.4,1894.3,6.4605843]
[1743173079450,6.05177,1894.6,1894.3,6.4605843]
[1743173080239,5.2791,1894.3,1893.9,35.04550008]
[1743173080409,6.01,1894.4,1894.1,5.27928]
[1743173080609,6.01,1894.4,1894.2,5.27914]
[1743173081029,6.01,1894.4,1894.3,5.27899]
[1743173081225,6.7836,1894.6,1894.3,5.27899]
[1743173081843,6.7836,1894.6,1894.1,5.27953]
[1743173081844,14.69920853,1894.6,1894.1,5.27953]
[1743173082108,13.53170085,1894.6,1894.2,5.27912]
[1743173082314,6.7836,1894.6,1894.3,5.27899]
[1743173082515,6.7836,1894.6,1894.2,5.27912]
[1743173082836,0.7777,1894.8,1894.5,5.2783]
[1743173083340,6.8196,1895.0,1894.6,5.27788]
[1743173083544,6.8196,1895.0,1894.7,5.27786]
[1743173083716,6.8196,1895.0,1894.6,5.27788]
[1743173083909,12.09667,1895.0,1894.6,5.27788]
[1743173084111,14.20324416,1895.0,1894.6,5.27788]
[1743173084342,8.92617416,1895.0,1894.6,10.55592]
[1743173084548,6.8196,1895.0,1894.7,5.27776]
[1743173084731,6.01,1895.0,1894.7,5.27776]
[1743173085126,6.01,1895.0,1894.6,5.27815]
[1743173085552,11.28707,1895.0,1894.6,5.27815]
[1743173085750,11.28707,1895.0,1894.7,5.27786]
[1743173085920,6.01,1895.0,1894.7,10.55557]
[1743173086219,6.01,1895.0,1894.7,6.333267]
[1743173086617,6.7907,1895.1,1894.7,6.333267]
[1743173086851,12.06752,1895.1,1894.8,5.27746]
[1743173087237,12.06752,1895.1,1894.7,5.2778]
[1743173087629,6.7907,1895.1,1894.8,5.2775]
[1743173087823,12.06746,1895.1,1894.7,5.2778]
[1743173088328,12.06746,1895.1,1894.7,6.09256]
[1743173088663,12.06746,1895.1,1894.8,5.27756]
[1743173089519,6.7907,1895.1,1894.8,5.27756]
[1743173090561,12.06754,1895.1,1894.8,5.27756]
[1743173090871,6.01,1895.1,1895.0,5.27704]
[1743173091161,9.10209,1895.5,1895.1,5.27662]
[1743173091458,9.10209,1895.5,1895.2,5.27645]
[1743173091659,3.8263,1895.5,1895.2,5.27629]
[1743173091859,6.01,1895.6,1895.3,5.2761]
[1743173092065,11.28538,1895.6,1895.3,5.2761]
[1743173092376,6.01,1895.6,1895.3,5.2761]
[1743173092882,11.28547,1895.6,1895.2,10.55265]
[1743173093059,11.28547,1895.6,1895.2,5.27629]
[1743173093375,11.28547,1895.6,1895.2,11.54945357]
[1743173093564,11.28547,1895.6,1895.2,6.27316357]
[1743173094154,11.28547,1895.6,1895.2,5.27628]
[1743173094385,6.01,1895.6,1895.3,5.276]
[1743173094585,11.28538,1895.6,1895.2,5.27628]
[1743173095373,6.01,1895.6,1895.3,5.27615]
[1743173095579,6.01,1895.6,1895.2,5.27641]
[1743173096079,11.28558,1895.6,1895.2,5.27641]
[1743173096381,17.766538,1895.6,1895.2,5.27641]
[1743173096581,12.490958,1895.6,1895.2,5.27641]
[1743173097281,17.766518,1895.6,1895.2,5.27641]
[1743173097483,12.490958,1895.6,1895.3,5.27618]
[1743173097779,12.490958,1895.6,1895.2,10.55275]
[1743173097985,11.28555,1895.6,1895.2,10.55275]
[1743173098452,11.28555,1895.6,1895.2,5.27634]
[1743173099682,11.28555,1895.6,1895.2,10.55266]
[1743173099975,11.28555,1895.6,1895.2,10.55268]
[1743173100184,11.28555,1895.6,1895.2,5.27632]
[1743173100379,5.27663,1895.2,1894.8,33.17944]
[1743173100684,10.55257,1895.3,1894.8,33.17937]
[1743173100996,5.27624,1895.3,1895.0,5.27702]
[1743173101478,0.809,1895.4,1895.0,8.67532853]
[1743173101685,5.27569,1895.5,1895.1,10.55328]
[1743173101849,7.1319215,1895.5,1895.1,5.27664]
[1743173102054,12.4077215,1895.5,1895.1,5.27664]
[1743173102786,5.27594,1895.4,1895.0,11.31484]
[1743173102963,5.27594,1895.4,1895.0,6.0378]
[1743173103158,5.27594,1895.4,1895.0,6.03779]
[1743173103352,6.8058,1895.6,1895.4,5.27581]
[1743173103552,6.01,1895.6,1895.5,5.27565]
[1743173103757,11.33464,1895.9,1895.5,10.5512]
[1743173103983,11.33464,1895.9,1895.5,10.5511]
[1743173104190,5.27485,1895.8,1895.5,5.27555]
[1743173104592,6.06,1895.9,1895.6,5.27518]
[1743173104895,11.33469,1895.9,1895.5,5.2756]
[1743173105050,6.06,1895.9,1895.4,5.27592]
[1743173105253,10.55045,1895.7,1895.3,10.40014]
[1743173105500,5.27518,1895.7,1895.3,15.67621]
[1743173105678,6.06741,1895.6,1895.2,6.05891]
[1743173105853,0.7919,1895.6,1895.3,5.27619]
[1743173106392,6.06728,1895.6,1895.2,10.55267]
[1743173106789,5.27578,1895.5,1895.1,10.39973]
[1743173106958,5.27578,1895.5,1895.1,15.67636]
[1743173107153,5.27578,1895.5,1895.1,5.27663]
[1743173107484,5.27578,1895.5,1895.1,10.55309]
[1743173108090,6.0673,1895.6,1895.2,10.55277]
[1743173108269,0.7919,1895.6,1895.3,5.27601]
[1743173108469,0.7626,1895.8,1895.5,5.2754]
[1743173108669,6.06,1895.9,1895.5,5.27564]
[1743173108897,6.06,1895.9,1895.5,10.5511]
[1743173109098,16.60934,1895.9,1895.5,5.27546]
[1743173109512,5.27484,1895.8,1895.5,5.27546]
[1743173109680,0.7973,1895.6,1895.3,15.67726]
[1743173109877,0.7973,1895.6,1895.4,10.55171]
[1743173110221,10.54988,1895.8,1895.4,5.27578]
[1743173111279,5.27509,1895.7,1895.3,10.40106]
[1743173111583,10.54981,1895.8,1895.4,5.27576]
[1743173111906,2.63742853,1895.5,1895.0,5.27694]
[1743173112111,5.27605,1895.4,1895.0,5.27694]
[1743173112415,6.01,1895.5,1894.9,6.10898]
[1743173112576,5.2763,1895.3,1894.9,6.10896]
[1743173112773,6.01,1895.5,1895.0,2.63742853]
[1743173113086,6.01,1895.5,1895.2,10.55267]
[1743173113696,6.01,1895.5,1895.1,2.63742853]
[1743173113904,6.01,1895.5,1894.9,6.1091]
[1743173113905,6.01,1895.5,1895.3,6.05363]
[1743173114311,6.01,1895.5,1895.2,5.27648]
[1743173114826,6.01,1895.5,1895.3,10.55231]
[1743173115032,6.01,1895.5,1895.2,5.27638]
[1743173115187,6.01,1895.5,1895.2,5.27632]
[1743173115520,6.01,1895.5,1895.3,5.2762]
[1743173115723,6.01,1895.5,1895.2,5.27645]
[1743173116216,6.01,1895.5,1895.2,5.27636]
[1743173116420,12.06079,1895.5,1895.1,11.3309]
[1743173116620,18.992717,1895.5,1895.1,5.27665]
[1743173116821,5.27595,1895.4,1895.0,5.27689]
[1743173117006,0.813,1895.2,1895.0,5.27689]
[1743173117518,6.7631,1895.4,1895.1,5.27667]
[1743173117829,6.01,1895.4,1895.2,5.27636]
[1743173118621,6.01,1895.4,1895.3,5.2762]
[1743173119002,6.01,1895.4,1895.2,5.27635]
[1743173120191,6.01,1895.4,1895.2,5.27632]
[1743173120693,0.8027,1895.3,1895.0,5.27694]
[1743173120919,0.8027,1895.3,1895.0,10.55376]
[1743173121120,11.28603,1895.4,1895.0,10.55376]
[1743173121121,6.01,1895.4,1895.2,5.27648]
[1743173121429,6.01,1895.4,1895.1,5.27673]
[1743173121793,6.01,1895.4,1895.1,5.27658]
[1743173122326,6.07887,1895.0,1894.6,5.27788]
[1743173122621,6.03154,1894.8,1894.3,33.17598]
[1743173122921,5.27856,1894.5,1894.1,5.27955]
[1743173123125,6.01,1894.5,1894.2,5.2791]
[1743173123418,6.01,1894.5,1894.2,5.27925]
[1743173123624,6.01,1894.5,1894.2,6.09645]
[1743173123930,6.01,1894.5,1894.4,5.27871]
[1743173124095,6.01,1894.5,1894.3,5.27877]
[1743173124290,6.01,1894.5,1894.4,5.27871]
[1743173124522,6.01,1894.5,1894.3,5.27877]
[1743173125022,6.01,1894.5,1894.1,5.27948]
[1743173125226,7.138827,1894.5,1894.1,5.27934]
[1743173125397,7.967427,1894.5,1894.1,5.27934]
[1743173125596,13.245977,1894.5,1894.1,5.27934]
[1743173125797,13.245897,1894.5,1894.1,5.27943]
[1743173126430,7.967427,1894.5,1894.1,5.27943]
[1743173126608,7.967427,1894.5,1894.1,5.27936]
[1743173126808,13.245967,1894.5,1894.1,5.27936]
[1743173127009,7.967427,1894.5,1894.1,5.27936]
[1743173127506,7.967427,1894.5,1894.2,5.27915]
[1743173127826,0.7967427,1894.4,1894.1,5.2794]
[1743173128030,13.245987,1894.5,1894.1,5.2794]
[1743173128196,7.967427,1894.5,1894.1,10.55877]
[1743173128495,7.967427,1894.5,1894.2,5.27925]
[1743173128698,13.245887,1894.5,1894.1,5.27937]
[1743173128915,18.524587,1894.5,1894.1,5.27937]
[1743173129221,1.8524587,1894.4,1894.1,5.27937]
[1743173129621,13.245867,1894.5,1894.1,5.27937]
[1743173129819,13.245867,1894.5,1894.1,10.55874]
[1743173130027,7.138827,1894.5,1894.1,2.63742853]
[1743173130226,6.01,1894.5,1894.3,5.27897]
[1743173130431,6.01,1894.5,1894.2,5.27899]
[1743173130821,6.01,1894.5,1894.3,5.27887]
[1743173131022,6.01,1894.5,1894.2,5.27923]
[1743173131221,0.601,1894.4,1894.3,5.27899]
[1743173131416,6.01,1894.5,1894.2,6.03491]
[1743173131622,6.01,1894.5,1894.3,5.27898]
[1743173131817,6.01,1894.5,1894.2,5.27921]
[1743173132022,6.01,1894.5,1894.3,5.27895]
[1743173132531,6.01,1895.1,1894.7,5.27776]
[1743173132724,12.03744,1895.2,1894.7,5.27776]
[1743173132919,6.7608,1895.2,1894.9,5.27713]
[1743173133539,6.01,1895.2,1895.0,5.27691]
[1743173134434,6.01,1895.2,1895.0,5.27683]
[1743173134622,6.01,1895.2,1895.1,5.27676]
[1743173134945,5.27624,1895.3,1894.9,5.27732]
[1743173135148,1.430297,1895.3,1894.9,5.2771]
[1743173135443,6.706637,1895.3,1894.9,5.2771]
[1743173135650,1.430297,1895.3,1894.9,10.55429]
[1743173135862,3.7508,1895.4,1895.1,5.2766]
[1743173136028,3.7508,1895.4,1895.1,10.55325]
[1743173136220,3.0,1895.4,1895.1,5.2766]
[1743173137646,3.0,1895.4,1895.0,5.27703]
[1743173137850,8.27597,1895.4,1895.0,5.27703]
[1743173138224,3.0,1895.4,1895.1,5.27672]
[1743173138430,8.27593,1895.4,1895.0,5.27685]
[1743173138831,5.27663,1895.2,1894.8,5.27746]
[1743173139016,5.27663,1895.2,1894.7,10.43586]
[1743173139215,6.0995,1895.0,1894.6,5.27806]
[1743173139419,5.27679,1895.1,1894.7,5.27765]
[1743173139623,12.10875,1895.2,1894.8,5.27746]
[1743173139822,19.38769085,1895.2,1894.8,5.27746]
[1743173140133,5.2768,1895.1,1894.7,5.27765]
[1743173140534,14.11099085,1895.2,1894.7,5.27765]
[1743173140934,14.11099085,1895.2,1894.8,5.27752]
[1743173141122,19.38768085,1895.2,1894.8,5.27752]
[1743173141318,14.11099085,1895.2,1894.8,5.2774]
[1743173141749,5.27776,1894.8,1894.4,0.7963]
[1743173141921,10.55563,1894.8,1894.3,5.27897]
[1743173142223,5.27776,1894.8,1894.4,5.2787]
[1743173142420,0.75,1894.6,1894.4,5.2786]
[1743173142636,0.75,1894.6,1894.5,5.27843]
[1743173142834,0.75,1894.6,1894.4,5.27865]
[1743173143760,0.7929,1894.8,1894.5,5.27843]
[1743173143921,6.01,1894.9,1894.6,5.27801]
[1743173145170,6.01,1894.9,1894.8,5.2776]
[1743173145366,6.7746,1895.2,1894.9,5.27718]
[1743173145941,17.32793,1895.2,1894.8,5.27755]
[1743173146141,6.0448,1895.0,1894.6,5.27815]
[1743173146351,6.0448,1895.0,1894.6,5.27798]
[1743173146675,2.16294265,1895.0,1894.7,5.27778]
[1743173146840,0.7676,1895.0,1894.7,5.27778]
[1743173147040,0.7676,1895.0,1894.7,5.27777]
[1743173147241,6.01,1895.2,1895.0,5.27689]
[1743173147467,6.01,1895.2,1894.9,5.27705]
[1743173147977,11.2865,1895.2,1894.8,5.27758]
[1743173148153,0.833,1895.1,1894.8,5.27744]
[1743173148470,6.01,1895.2,1895.0,5.27695]
[1743173148853,6.01,1895.2,1895.0,5.27688]
[1743173149049,6.01,1895.2,1895.0,5.27687]
[1743173149571,6.01,1895.2,1894.8,5.2775]
[1743173149776,12.498603,1895.2,1894.8,10.55497]
[1743173150165,12.498603,1895.2,1894.8,5.27747]
[1743173150366,12.498603,1895.2,1894.8,10.5549]
[1743173150555,7.221923,1895.2,1895.0,5.27701]
[1743173151156,7.221923,1895.2,1894.9,5.27716]
[1743173151978,7.221923,1895.2,1895.0,5.27697]
[1743173152178,7.221923,1895.2,1895.0,10.55387]
[1743173152179,6.01,1895.2,1895.0,10.55387]
[1743173152380,6.01,1895.2,1895.0,5.2769]
[1743173152762,6.01,1895.2,1895.0,10.55385]
[1743173153086,6.01,1895.2,1895.1,5.27676]
[1743173153376,6.01,1895.2,1895.0,10.55377]
[1743173153577,6.01,1895.2,1895.1,5.27676]
[1743173155376,3.8169,1895.6,1895.3,5.27594]
[1743173155579,0.8169,1895.6,1895.4,5.27588]
[1743173155788,6.01,1895.7,1895.6,5.27537]
[1743173155952,6.01,1895.7,1895.5,5.27565]
[1743173156280,6.01,1895.7,1895.5,5.27551]
[1743173156465,6.01,1895.7,1895.6,5.27537]
[1743173156687,6.06,1895.9,1895.7,5.27509]
[1743173156856,7.274977,1895.9,1895.7,5.27509]
[1743173157363,6.06,1895.9,1895.8,5.27481]
[1743173157683,6.06,1895.9,1895.7,5.27495]
[1743173157853,6.06,1895.9,1895.7,10.54992]
[1743173158055,6.06,1895.9,1895.7,5.27495]
[1743173159051,0.05,1895.9,1895.8,5.27481]
[1743173160281,0.05,1895.9,1895.5,0.818]
[1743173160456,5.32463,1895.9,1895.5,10.55102]
[1743173160664,0.05,1895.9,1895.6,5.27529]
[1743173160864,5.3247,1895.9,1895.5,5.27561]
[1743173161067,10.59948,1895.9,1895.5,5.27561]
[1743173161263,5.3247,1895.9,1895.5,10.55109]
[1743173161467,10.59944,1895.9,1895.5,5.27548]
[1743173161663,0.05,1895.9,1895.7,5.27499]
[1743173161964,0.05,1895.9,1895.7,5.27498]
[1743173162161,0.05,1895.9,1895.8,5.27481]
[1743173163666,0.8197,1895.9,1895.6,1.07595504]
[1743173164189,0.8197,1895.9,1895.7,10.55006]
[1743173164385,0.05,1895.9,1895.8,5.27481]
[1743173164888,0.05,1895.9,1895.7,10.5499]
[1743173165288,0.05,1895.9,1895.7,5.27492]
[1743173165486,0.05,1895.9,1895.6,1.07595504]
[1743173165655,0.7697,1895.5,1895.0,8.65868058]
[1743173165861,6.04628,1895.2,1895.0,8.65868058]
[1743173166060,0.7697,1895.2,1895.0,8.65868058]
[1743173166874,6.04564,1895.4,1895.0,13.93551058]
[1743173167073,6.04564,1895.4,1895.1,5.27664]
[1743173167285,0.7697,1895.4,1895.2,5.27642]
[1743173167479,3.0,1895.5,1895.2,5.27642]
[1743173167881,6.04524,1895.6,1895.3,5.27619]
[1743173168278,5.27513,1895.7,1895.4,5.27574]
[1743173168279,3.0,1895.7,1895.4,5.27574]
[1743173168596,6.01,1895.8,1895.7,5.27509]
[1743173168765,0.05,1895.9,1895.8,5.27481]
[1743173168965,0.05,1895.9,1895.7,5.27509]
[1743173169160,0.05,1895.9,1895.8,5.27481]
[1743173169363,0.05,1895.9,1895.8,5.32755604]
[1743173169559,0.05,1895.9,1895.8,6.3350536]
[1743173169771,0.05,1895.9,1895.8,1.0602436]
[1743173169975,0.05,1895.9,1895.7,5.27488]
[1743173170288,0.05,1895.9,1895.7,5.27485]
[1743173170467,0.05,1895.9,1895.7,6.31629312]
[1743173170867,0.05,1895.9,1895.8,5.27481]
[1743173171101,0.05,1895.9,1895.7,6.31629312]
[1743173171394,0.05,1895.9,1895.8,5.27481]
[1743173171578,0.05,1895.9,1895.7,6.31629312]
[1743173171891,0.05,1895.9,1895.7,7.99473543]
[1743173172091,0.05,1895.9,1895.8,5.27481]
[1743173172497,0.05,1895.9,1895.7,10.54997]
[1743173172791,0.05,1895.9,1895.7,5.27494]
[1743173172985,0.05,1895.9,1895.7,10.54982]
[1743173173186,0.05,1895.9,1895.7,10.54984]
[1743173173387,0.05,1895.9,1895.7,6.849074]
[1743173173896,0.05,1895.9,1895.8,5.27481]
[1743173174500,0.05,1895.9,1895.6,16.78892144]
[1743173174696,0.05,1895.9,1895.7,10.55]
[1743173174890,0.05,1895.9,1895.8,5.27481]
[1743173175070,0.05,1895.9,1895.7,5.27496]
[1743173175265,0.05,1895.9,1895.7,5.27494]
[1743173175506,0.05,1895.9,1895.7,5.27492]
[1743173175681,0.05,1895.9,1895.8,5.27481]
[1743173177583,0.05,1895.9,1895.8,8.77026869]
[1743173177783,0.05,1895.9,1895.8,8.71752652]
[1743173178294,0.05,1895.9,1895.8,8.77026256]
[1743173178479,0.05,1895.9,1895.8,9.40744584]
[1743173178685,0.05,1895.9,1895.8,9.3547098]
[1743173178880,0.05,1895.9,1895.8,6.72289328]
[1743173179085,0.05,1895.9,1895.8,11.92389328]
[1743173179285,0.05,1895.9,1895.8,11.11299328]
[1743173180007,0.05,1895.9,1895.8,0.63718328]
[1743173180183,6.15246,1895.9,1895.4,33.17181]
[1743173180377,0.8279,1895.6,1895.4,27.896]
[1743173180577,0.8279,1895.6,1895.4,33.17177]
[1743173180796,0.8279,1895.6,1895.4,38.44758]
[1743173181002,6.05142,1895.8,1895.4,27.896]
[1743173181205,6.661562,1895.8,1895.4,27.896]
[1743173181405,5.2751,1895.7,1895.4,27.896]
[1743173181709,5.2751,1895.7,1895.4,33.17192]
[1743173182075,6.661562,1895.8,1895.4,33.17192]
[1743173182412,0.7766,1895.8,1895.5,5.27553]
[1743173183079,0.7766,1895.8,1895.5,10.551]
[1743173183302,0.7766,1895.8,1895.6,5.27535]
[1743173183505,3.05,1895.9,1895.6,5.27524]
[1743173183810,0.7634,1895.3,1894.9,5.2772]
[1743173183975,6.03971,1895.3,1894.9,5.27715]
[1743173184179,11.31618,1895.3,1894.9,5.27715]
[1743173184503,8.67197652,1895.1,1894.5,5.27832]
[1743173184706,0.8239,1894.8,1894.5,5.27832]
[1743173185010,5.27837,1894.6,1894.1,28.6424]
[1743173185182,5.235,1895.1,1894.1,27.892]
[1743173185183,5.27875,1894.4,1894.1,27.892]
[1743173185379,11.28875,1894.4,1894.1,27.892]
[1743173185582,6.01,1894.4,1894.1,33.17154]
[1743173185795,11.28873,1894.4,1894.1,27.892]
[1743173186006,6.01,1894.4,1894.1,27.892]
[1743173186899,6.01,1894.4,1894.2,5.27925]
[1743173187608,6.01,1894.4,1894.2,5.27914]
[1743173187821,6.01,1894.4,1894.3,5.27899]
[1743173188111,6.01,1894.4,1894.2,5.27906]
[1743173189011,6.01,1894.4,1894.1,27.892]
[1743173189310,11.28875,1894.4,1894.1,27.892]
[1743173189510,6.04712,1894.2,1893.7,5.28048]
[1743173189720,13.92146652,1894.1,1893.6,5.28094]
[1743173190009,0.7677,1893.9,1893.5,10.12557156]
[1743173190221,6.7777,1893.9,1893.5,5.28106]
[1743173190386,13.263663,1893.9,1893.4,5.28133]
[1743173190587,13.263663,1893.9,1893.5,5.28111]
[1743173191193,13.263663,1893.9,1893.4,5.28133]